Workbook

Sheet Accueil
F6: Nous somme le :
F7: =NOW() -> 2018-11-28T23:28:06.780
C9: La feuille salaire brut - net est autonome des autres feuilles !
D12: Net - brut

Sheet bareme
B5: Barème d'IR Mensuel
B6: Revenus | C6: Taux | D6: ∑ à déduire
B7: 0 | C7: 0 | D7: 0
B8: 2501 | C8: 0.1 | D8: 250
B9: 4168.68 | C9: 0.2 | D9: 666.67
B10: 5000.01 | C10: 0.3 | D10: 1166.67
B11: 6666.68 | C11: 0.34 | D11: 1433.33
B12: 15000.01 | C12: 0.38 | D12: 2033.33
B17: Déduction charge familiale
B18: 30
B21: Frais professionnel
B22: 0.2
B24: Seuil mensuel
B25: 2500
B28: Taux CNSS
B29: 0.0448
B31: Plafond CNSS
B32: 6000
B35: Taux AMO
B36: 0.0226

Sheet saisi
C6: Salaire brut | D6: 5555 | H6: 4000
C8: Nombre de déduction | D8: 2
C10: Salaire net | H10: 0

Sheet salaire
IJ2: =+H4 -> 4000 | IL2: =+IJ2+IK2 -> 4000 | IM2: =+H7 -> 0 | IN2: =+IJ2*bareme!B22 -> 800 | IO2: =IF(IN2<bareme!B25,IN2,bareme!B25) -> 800 | IP2: =IF(IJ2>bareme!B32,bareme!B32*bareme!B29,IJ2 *bareme!B29) -> 179.2 | IQ2: =IF(IT2<=0,0,IT2) -> 43.04 | IR2: =IJ2*bareme!B36 -> 90.4 | IS2: =+IJ2-IO2-IP2-IR2 -> 2930.4 | IT2: =IF(IS2>bareme!B12,IS2*bareme!C12-(bareme!D12+IM2*bareme!B18),IF(IS2>bareme!B11,IS2*bareme!C11-(bareme!D11+IM2*bareme!B18),IF(IS2>bareme!B10,IS2*bareme!C10-(bareme!D10+IM2*bareme!B18),IF(IS2>bareme!B9,IS2*bareme!C9-(bareme!D9+IM2*bareme!B18),IF(IS2>bareme!B8,IS2*bareme!C8-(bareme!D8+IM2*bareme!B18),IF(IS2<bareme!B6,0)))))) -> 43.04 | IU2: =+IL2-(IP2+IR2+IQ2) -> 3687.36 | IV2: =+IQ2+IR2+IP2 -> 312.64
C4: Salaire brut | D4: =+H4 -> 4000 | H4: =+saisi!H6 -> 4000
H5: =+saisi!H8 -> 0
C6: Nombre de déduction | D6: =+IM2 -> 0
H7: =+saisi!H10 -> 0
C8: C.N.S.S | D8: =+IP2 -> 179.2
C10: A.M.O | D10: =+IR2 -> 90.4 | H10: Total retenues
C12: I . R | D12: =+IQ2 -> 43.04 | H12: =+D8+D10+D12 -> 312.64
C16: Salaire net | D16: =+IU2 -> 3687.36

Sheet Salaire brut - net
D1: Barème de l'IGR mensuel
D2: 0 | E2: 0 | F2: 0
D3: 2501 | E3: 0.1 | F3: 250
D4: 4168.68 | E4: 0.2 | F4: 666.6666667
D5: 5000.01 | E5: 0.3 | F5: 1166.666667
D6: 6666.68 | E6: 0.34 | F6: 1433.333333
D7: 15000.01 | E7: 0.38 | F7: 2033.333333
D10: Ancienneté
D11: 0 | E11: 0
D12: =365*2 -> 730 | E12: 0.05
A13: Simulateur salaire du brut au net | D13: =365*5 -> 1825 | E13: 0.1
D14: =365*12 -> 4380 | E14: 0.15
E15: 0.2
A16: Zone en vert à remplir manuellement | D16: =365*25 -> 9125 | E16: 0.25
A18: Date de paiement | B18: 2015-12-31
A19: Date embauche | B19: 2015-02-01
A20: Ancienneté (en jours) | B20: =B18-B19 -> 333
A21: Taux d'ancienneté | B21: =VLOOKUP((B18-B19),D11:E16,2) -> 0
A22: Salaire de base | B22: 5000
A23: Prime exonerée sous CNSS et IR A selon la loi en vigueur | B23: 0
A24: Prime exonerée sous CNSS et IR B selon la loi en vigueur | B24: 0
A25: Prime d'anciennenté | B25: =B22*B21 -> 0
A26: Salaire brut imposable | B26: =B22+B25 -> 5000
A27: Frais professionnel | B27: =MIN(B26*20%,2500) -> 1000
A28: CNSS | B28: =MIN(B26*4.48%,268.8) -> 224
A29: AMO | B29: =B26*2.26% -> 113
A30: Nombre de jours déclaré en CNSS | B30: 26
A31: Salaire net imposable | B31: =IF(B30<=0,0,(B26-SUM(B27:B29))*26/B30) -> 3663
A32: IR brut | B32: =((B31*VLOOKUP(B31,D2:F7,2))-VLOOKUP(B31,D2:F7,3))*(B30/26) -> 116.3
A33: Déductions | B33: 0
A34: IR net | B34: =IF(B32-MIN(B33*30,180)<=0,0,(B32-MIN(B33*30,180))) -> 116.3
A35: Salaire net théorique | B35: =SUM(B22:B25)-SUM(B28:B29)-B34 -> 4546.7
A36: Part salarial : CNSS + AMO | B36: =SUM(B28:B29) -> 337
A37: Part patronal : CNSS + AMO | B37: =MIN(B26,6000)*8.98%+B26*8%+B26*4.11% -> 1054.5
A38: coût global CNSS + AMO + IR | B38: =B34+SUM(B36:B37) -> 1507.8
A39: Coût global à payer (salaire & charges sociales -fiscales) | B39: =B35+B38 -> 6054.5
